[Event "CCT Chessable Masters Play-In 2025"]
[Site "Online"]
[Date "2025.02.17"]
[Round "2.52"]
[White "Quintiliano, Renato R."]
[Black "Esipenko, Andrey"]
[Result "0-1"]
[ECO "D35"]
[WhiteElo "2515"]
[BlackElo "2695"]
[PlyCount "96"]
[EventDate "2025.02.13"]
[EventType "swiss"]
[EventCountry "NET"]
[TimeControl "600"]
[WhiteClock "0:03:51"]
[BlackClock "0:02:39"]

1. d4 {[%emt 0:00:04]} Nf6 {[%emt 0:00:02]} 2. c4 {[%emt 0:00:01]} e6 {[%emt 0:00:01]} 3. Nc3 {[%emt 0:00:01]} d5 {[%emt 0:00:04]} 4. Nf3 {[%emt 0:00:03]} Be7 {[%emt 0:00:02]} 5. cxd5 {[%emt 0:00:01]} exd5 {[%emt 0:00:03]} 6. Bf4 {[%emt 0:00:01]} c6 {[%emt 0:00:10]} 7. e3 {[%emt 0:00:02]} Bf5 {[%emt 0:00:03]} 8. Nh4 {[%emt 0:00:01]} Be4 {[%emt 0:00:17]} 9. Bd3 {[%emt 0:00:39]} Bxd3 {[%emt 0:00:05]} 10. Qxd3 {[%emt 0:00:03]} g6 {[%emt 0:00:28]} 11. Nf3 {[%emt 0:00:05]} Nbd7 {[%emt 0:00:10]} 12. h3 {[%emt 0:00:02]} O-O {[%emt 0:00:10]} 13. O-O {[%emt 0:00:05]} Re8 {[%emt 0:00:03]} 14. Rab1 {[%emt 0:00:02]} a5 {[%emt 0:00:09]} 15. Qc2 {[%emt 0:00:10]} Nf8 {[%emt 0:00:14]} 16. a3 {[%emt 0:00:06]} Ne6 {[%emt 0:00:08]} 17. Bh2 {[%emt 0:00:25]} Bd6 {[%emt 0:00:04]} 18. Ne5 {[%emt 0:00:02]} Qe7 {[%emt 0:00:15]} 19. f4 {[%emt 0:00:18]} Ng7 {[%emt 0:00:03]} 20. Rbe1 {[%emt 0:00:08]} Ne4 {[%emt 0:00:27]} 21. Nxe4 {[%emt 0:00:32]} dxe4 {[%emt 0:00:00]} 22. g4 {[%emt 0:00:17]} f6 {[%emt 0:00:13]} 23. Nc4 {[%emt 0:00:05]} Bc7 {[%emt 0:00:00]} 24. f5 {[%emt 0:00:06]} Bxh2+ {[%emt 0:00:14]} 25. Qxh2 {[%emt 0:00:00]} Rad8 {[%emt 0:00:03]} 26. fxg6 {[%emt 0:00:07]} hxg6 {[%emt 0:00:02]} 27. Nxa5 {[%emt 0:00:04]} Ne6 {[%emt 0:00:00]} 28. h4 {[%emt 0:00:08]} Kg7 {[%emt 0:00:03]} 29. Nc4 {[%emt 0:00:06]} Rh8 {[%emt 0:00:07]} 30. Qg3 {[%emt 0:00:03]} c5 {[%emt 0:00:15]} 31. g5 {[%emt 0:00:04]} f5 {[%emt 0:01:01]} 32. Qe5+ {[%emt 0:00:08]} Kf7 {[%emt 0:00:02]} 33. d5 {[%emt 0:00:51]} Ng7 {[%emt 0:00:05]} 34. d6 {[%emt 0:00:07]} Qe6 {[%emt 0:00:18]} 35. Qxc5 {[%emt 0:00:03]} Rc8 {[%emt 0:00:12]} 36. Ne5+ {[%emt 0:00:03]} Kg8 {[%emt 0:00:01]} 37. Qd4 {[%emt 0:00:04]} Rxh4 {[%emt 0:00:03]} 38. Rc1 {[%emt 0:00:02]} Rd8 {[%emt 0:00:09]} 39. Rfd1 {[%emt 0:00:13]} f4 {[%emt 0:00:08]} 40. Qd5 {[%emt 0:00:05]} fxe3 {[%emt 0:00:11]} 41. Qxe6+ {[%emt 0:00:05]} Nxe6 {[%emt 0:00:01]} 42. d7 {[%emt 0:00:00]} Rh5 {[%emt 0:00:05]} 43. Nc4 {[%emt 0:00:16]} e2 {[%emt 0:00:55]} 44. Rd2 {[%emt 0:00:02]} Nf4 {[%emt 0:00:01]} 45. Nb6 {[%emt 0:00:11]} Rxg5+ {[%emt 0:00:11]} 46. Kf2 {[%emt 0:00:04]} Nd3+ {[%emt 0:00:01]} 47. Rxd3 {[%emt 0:00:01]} exd3 {[%emt 0:00:02]} 48. Rc8 {[%emt 0:00:03]} Rf5+ {[%emt 0:00:00]} 0-1

[Event "CCT Chessable Masters Play-In 2025"]
[Site "Online"]
[Date "2025.02.17"]
[Round "2.53"]
[White "Aditya Mittal"]
[Black "Yoo, Christopher Woojin"]
[Result "1-0"]
[ECO "D43"]
[WhiteElo "2550"]
[BlackElo "2588"]
[PlyCount "51"]
[EventDate "2025.02.13"]
[EventType "swiss"]
[EventCountry "NET"]
[TimeControl "600"]
[WhiteClock "0:02:47"]
[BlackClock "0:03:00"]

1. d4 {[%emt 0:00:01]} Nf6 {[%emt 0:00:02]} 2. c4 {[%emt 0:00:00]} e6 {[%emt 0:00:00]} 3. Nf3 {[%emt 0:00:00]} d5 {[%emt 0:00:02]} 4. Nc3 {[%emt 0:00:00]} c6 {[%emt 0:00:15]} 5. Bg5 {[%emt 0:00:06]} h6 {[%emt 0:00:02]} 6. Bh4 {[%emt 0:00:06]} dxc4 {[%emt 0:00:03]} 7. e4 {[%emt 0:00:01]} g5 {[%emt 0:00:01]} 8. Bg3 {[%emt 0:00:00]} b5 {[%emt 0:00:01]} 9. Be2 {[%emt 0:00:13]} Bg7 {[%emt 0:01:03]} 10. e5 {[%emt 0:00:01]} Nh5 {[%emt 0:00:01]} 11. a4 {[%emt 0:00:09]} a6 {[%emt 0:01:31]} 12. Ne4 {[%emt 0:00:03]} O-O {[%emt 0:00:04]} 13. Nfxg5 {[%emt 0:01:28]} Nxg3 {[%emt 0:00:01]} 14. hxg3 {[%emt 0:00:01]} hxg5 {[%emt 0:00:01]} 15. Qc2 {[%emt 0:00:11]} f5 {[%emt 0:00:02]} 16. exf6 {[%emt 0:00:14]} Rxf6 {[%emt 0:00:01]} 17. Nxf6+ {[%emt 0:00:09]} Qxf6 {[%emt 0:00:01]} 18. Qh7+ {[%emt 0:00:08]} Kf8 {[%emt 0:00:01]} 19. Ra3 {[%emt 0:00:06]} g4 {[%emt 0:00:29]} 20. Bxg4 {[%emt 0:00:18]} Qxd4 {[%emt 0:00:02]} 21. Qg6 {[%emt 0:00:41]} Ra7 {[%emt 0:01:54]} 22. Bh5 {[%emt 0:02:21]} Bf6 {[%emt 0:01:06]} 23. Qe8+ {[%emt 0:00:35]} Kg7 {[%emt 0:00:01]} 24. Bg6 {[%emt 0:00:07]} Be5 {[%emt 0:00:02]} 25. Rh7+ {[%emt 0:00:11]} Kf6 {[%emt 0:00:14]} 26. Rf3+ {[%emt 0:00:03]} 1-0

[Event "CCT Chessable Masters Play-In 2025"]
[Site "Online"]
[Date "2025.02.17"]
[Round "2.54"]
[White "Murzin, Volodar"]
[Black "Van Foreest, Jorden"]
[Result "1-0"]
[ECO "E05"]
[WhiteElo "2657"]
[BlackElo "2660"]
[PlyCount "91"]
[EventDate "2025.02.13"]
[EventType "swiss"]
[EventCountry "NET"]
[TimeControl "600"]
[WhiteClock "0:01:35"]
[BlackClock "0:00:02"]

1. d4 {[%emt 0:00:01]} d5 {[%emt 0:00:09]} 2. Nf3 {[%emt 0:00:00]} e6 {[%emt 0:00:04]} 3. c4 {[%emt 0:00:06]} Nf6 {[%emt 0:00:01]} 4. g3 {[%emt 0:00:01]} Be7 {[%emt 0:00:01]} 5. Bg2 {[%emt 0:00:01]} O-O {[%emt 0:00:01]} 6. O-O {[%emt 0:00:00]} dxc4 {[%emt 0:00:00]} 7. Qc2 {[%emt 0:00:01]} a6 {[%emt 0:00:01]} 8. a4 {[%emt 0:00:02]} Bd7 {[%emt 0:00:00]} 9. Qxc4 {[%emt 0:00:02]} Bc6 {[%emt 0:00:00]} 10. Bg5 {[%emt 0:00:01]} Nbd7 {[%emt 0:00:01]} 11. Rd1 {[%emt 0:00:05]} h6 {[%emt 0:00:10]} 12. Bxf6 {[%emt 0:00:03]} Nxf6 {[%emt 0:00:00]} 13. Nbd2 {[%emt 0:00:04]} a5 {[%emt 0:00:06]} 14. Qd3 {[%emt 0:00:24]} Bb4 {[%emt 0:00:07]} 15. e4 {[%emt 0:00:16]} b6 {[%emt 0:00:35]} 16. Ne5 {[%emt 0:00:18]} Bb7 {[%emt 0:00:01]} 17. Ndc4 {[%emt 0:00:13]} Qe7 {[%emt 0:00:06]} 18. Qe3 {[%emt 0:00:46]} Rad8 {[%emt 0:00:13]} 19. Rd3 {[%emt 0:01:48]} c5 {[%emt 0:00:21]} 20. d5 {[%emt 0:00:02]} exd5 {[%emt 0:00:01]} 21. exd5 {[%emt 0:00:00]} Nxd5 {[%emt 0:00:00]} 22. Qf3 {[%emt 0:00:17]} Ba8 {[%emt 0:00:05]} 23. Qf5 {[%emt 0:00:46]} g6 {[%emt 0:01:27]} 24. Qh3 {[%emt 0:00:07]} Kg7 {[%emt 0:00:44]} 25. Rad1 {[%emt 0:00:09]} Nf6 {[%emt 0:00:01]} 26. Rxd8 {[%emt 0:00:36]} Rxd8 {[%emt 0:00:06]} 27. Rxd8 {[%emt 0:00:00]} Qxd8 {[%emt 0:00:00]} 28. Bxa8 {[%emt 0:00:02]} Qxa8 {[%emt 0:00:01]} 29. Qg2 {[%emt 0:00:03]} Qc8 {[%emt 0:01:03]} 30. Nxf7 {[%emt 0:00:16]} Qe6 {[%emt 0:00:17]} 31. Nfe5 {[%emt 0:00:11]} Nd5 {[%emt 0:00:31]} 32. Qe4 {[%emt 0:00:01]} h5 {[%emt 0:00:09]} 33. h4 {[%emt 0:00:05]} Kh7 {[%emt 0:00:21]} 34. Kg2 {[%emt 0:00:08]} Kg7 {[%emt 0:00:01]} 35. Qd3 {[%emt 0:00:15]} Be1 {[%emt 0:00:53]} 36. Kf1 {[%emt 0:00:22]} Bb4 {[%emt 0:00:01]} 37. Nxg6 {[%emt 0:00:04]} Nf6 {[%emt 0:01:49]} 38. Nf4 {[%emt 0:00:02]} Qc6 {[%emt 0:00:06]} 39. Qg6+ {[%emt 0:00:14]} Kf8 {[%emt 0:00:01]} 40. Ne5 {[%emt 0:00:03]} Qh1+ {[%emt 0:00:02]} 41. Ke2 {[%emt 0:00:00]} Qe1+ {[%emt 0:00:00]} 42. Kf3 {[%emt 0:00:05]} Qh1+ {[%emt 0:00:02]} 43. Ng2 {[%emt 0:00:19]} Qd1+ {[%emt 0:00:02]} 44. Kf4 {[%emt 0:00:00]} Nd5+ {[%emt 0:00:09]} 45. Kg5 {[%emt 0:00:04]} Bd2+ {[%emt 0:00:09]} 46. f4 {[%emt 0:00:02]} 1-0

[Event "CCT Chessable Masters Play-In 2025"]
[Site "Online"]
[Date "2025.02.17"]
[Round "2.55"]
[White "Xu, Xiangyu"]
[Black "Mekhitarian, Krikor Sevag"]
[Result "1-0"]
[ECO "D90"]
[WhiteElo "2623"]
[BlackElo "2515"]
[PlyCount "55"]
[EventDate "2025.02.13"]
[EventType "swiss"]
[EventCountry "NET"]
[TimeControl "600"]
[WhiteClock "0:06:28"]

1. d4 {[%emt 0:00:01]} Nf6 {[%emt 0:00:03]} 2. c4 {[%emt 0:00:01]} g6 {[%emt 0:00:02]} 3. Nc3 {[%emt 0:00:01]} d5 {[%emt 0:00:01]} 4. Nf3 {[%emt 0:00:02]} Bg7 {[%emt 0:00:14]} 5. h4 {[%emt 0:00:01]} c6 {[%emt 0:00:46]} 6. cxd5 {[%emt 0:00:02]} cxd5 {[%emt 0:00:02]} 7. Bf4 {[%emt 0:00:00]} O-O {[%emt 0:00:07]} 8. e3 {[%emt 0:00:01]} Nc6 {[%emt 0:00:03]} 9. Qb3 {[%emt 0:00:01]} Na5 {[%emt 0:00:28]} 10. Qb4 {[%emt 0:00:04]} Nc6 {[%emt 0:00:40]} 11. Qb3 {[%emt 0:00:02]} Na5 {[%emt 0:00:06]} 12. Qa3 {[%emt 0:00:01]} Bf5 {[%emt 0:01:33]} 13. Be2 {[%emt 0:00:35]} a6 {[%emt 0:00:40]} 14. Ne5 {[%emt 0:00:09]} Rc8 {[%emt 0:00:14]} 15. O-O {[%emt 0:00:20]} h5 {[%emt 0:01:40]} 16. Rac1 {[%emt 0:00:19]} Nc6 {[%emt 0:00:17]} 17. Nxc6 {[%emt 0:00:15]} Rxc6 {[%emt 0:00:02]} 18. Na4 {[%emt 0:00:03]} Rxc1 {[%emt 0:01:05]} 19. Rxc1 {[%emt 0:00:02]} Nd7 {[%emt 0:00:23]} 20. Bc7 {[%emt 0:00:24]} Qe8 {[%emt 0:00:05]} 21. Bf3 {[%emt 0:00:02]} e5 {[%emt 0:00:43]} 22. dxe5 {[%emt 0:00:23]} Nxe5 {[%emt 0:00:05]} 23. Bxd5 {[%emt 0:00:03]} Nd3 {[%emt 0:00:16]} 24. Rd1 {[%emt 0:00:20]} Qb5 {[%emt 0:00:16]} 25. e4 {[%emt 0:00:07]} Nxb2 {[%emt 0:00:01]} 26. Nxb2 {[%emt 0:00:08]} Bxb2 {[%emt 0:00:02]} 27. Qg3 {[%emt 0:00:05]} Bg4 28. Rb1 {[%emt 0:00:00]} 1-0

[Event "CCT Chessable Masters Play-In 2025"]
[Site "Online"]
[Date "2025.02.17"]
[Round "2.56"]
[White "Sadhwani, Raunak"]
[Black "Sankalp Gupta"]
[Result "1-0"]
[ECO "B51"]
[WhiteElo "2666"]
[BlackElo "2538"]
[PlyCount "109"]
[EventDate "2025.02.13"]
[EventType "swiss"]
[EventCountry "NET"]
[TimeControl "600"]
[WhiteClock "0:02:34"]
[BlackClock "0:03:19"]

1. e4 {[%emt 0:00:01]} c5 {[%emt 0:00:02]} 2. Nf3 {[%emt 0:00:01]} d6 {[%emt 0:00:02]} 3. Bb5+ {[%emt 0:00:02]} Nd7 {[%emt 0:00:02]} 4. Be2 {[%emt 0:00:01]} Ngf6 {[%emt 0:00:02]} 5. Nc3 {[%emt 0:00:03]} g6 {[%emt 0:00:05]} 6. d4 {[%emt 0:00:07]} cxd4 {[%emt 0:00:00]} 7. Nxd4 {[%emt 0:00:01]} Bg7 {[%emt 0:00:01]} 8. Be3 {[%emt 0:00:00]} O-O {[%emt 0:00:02]} 9. Qd2 {[%emt 0:00:01]} a6 {[%emt 0:00:07]} 10. f3 {[%emt 0:00:07]} e6 {[%emt 0:00:11]} 11. Nb3 {[%emt 0:00:05]} d5 {[%emt 0:00:02]} 12. exd5 {[%emt 0:00:02]} Nxd5 {[%emt 0:00:04]} 13. Nxd5 {[%emt 0:00:02]} exd5 {[%emt 0:00:00]} 14. O-O-O {[%emt 0:00:05]} Re8 {[%emt 0:00:13]} 15. Bd4 {[%emt 0:00:09]} Ne5 {[%emt 0:00:02]} 16. Kb1 {[%emt 0:00:10]} Nc4 {[%emt 0:00:15]} 17. Bxc4 {[%emt 0:00:14]} dxc4 {[%emt 0:00:03]} 18. Bxg7 {[%emt 0:00:00]} Qxd2 {[%emt 0:00:03]} 19. Nxd2 {[%emt 0:00:01]} Kxg7 {[%emt 0:00:01]} 20. Nxc4 {[%emt 0:00:01]} Be6 {[%emt 0:00:07]} 21. Nd6 {[%emt 0:00:09]} Re7 {[%emt 0:00:01]} 22. b3 {[%emt 0:00:16]} Rd7 {[%emt 0:00:05]} 23. Ne4 {[%emt 0:00:01]} Rc7 {[%emt 0:00:02]} 24. Rd2 {[%emt 0:00:03]} h6 {[%emt 0:00:08]} 25. Kb2 {[%emt 0:00:04]} g5 {[%emt 0:00:01]} 26. Re1 {[%emt 0:00:03]} Kg6 {[%emt 0:00:22]} 27. a4 {[%emt 0:00:05]} a5 {[%emt 0:00:06]} 28. Nc3 {[%emt 0:00:05]} h5 {[%emt 0:00:08]} 29. Nb5 {[%emt 0:00:01]} Rc5 {[%emt 0:00:04]} 30. c4 {[%emt 0:00:22]} Re8 {[%emt 0:00:17]} 31. Rd6 {[%emt 0:00:07]} h4 {[%emt 0:00:14]} 32. Rb6 {[%emt 0:00:11]} Re7 {[%emt 0:00:05]} 33. Nd6 {[%emt 0:00:06]} Rcc7 {[%emt 0:00:08]} 34. Rb5 {[%emt 0:00:09]} Rcd7 {[%emt 0:00:09]} 35. Rb6 {[%emt 0:00:22]} h3 {[%emt 0:00:11]} 36. g4 {[%emt 0:00:07]} Rd8 {[%emt 0:00:17]} 37. Kc3 {[%emt 0:00:09]} Red7 {[%emt 0:00:06]} 38. c5 {[%emt 0:00:23]} Rc7 {[%emt 0:00:00]} 39. Kd4 {[%emt 0:00:02]} Rdd7 {[%emt 0:00:01]} 40. Re5 {[%emt 0:00:19]} Rc6 {[%emt 0:00:03]} 41. Rxc6 {[%emt 0:00:51]} bxc6 {[%emt 0:00:00]} 42. Kc3 {[%emt 0:00:03]} Bd5 {[%emt 0:00:01]} 43. Rxd5 {[%emt 0:01:13]} cxd5 {[%emt 0:00:02]} 44. Kd4 {[%emt 0:00:00]} Kf6 {[%emt 0:00:22]} 45. Kxd5 {[%emt 0:00:01]} Ke7 {[%emt 0:00:02]} 46. Kc6 {[%emt 0:00:00]} Ke6 {[%emt 0:00:11]} 47. Kb6 {[%emt 0:00:09]} Kd5 {[%emt 0:00:39]} 48. Nb7 {[%emt 0:00:20]} Re7 {[%emt 0:00:28]} 49. c6 {[%emt 0:00:04]} Re6 {[%emt 0:00:05]} 50. Nxa5 {[%emt 0:00:02]} f5 {[%emt 0:00:27]} 51. gxf5 {[%emt 0:00:12]} Rf6 {[%emt 0:00:09]} 52. Kb7 {[%emt 0:00:03]} Rf7+ {[%emt 0:00:03]} 53. c7 {[%emt 0:00:03]} Ke5 {[%emt 0:00:08]} 54. Nc4+ {[%emt 0:00:03]} Kf4 {[%emt 0:00:12]} 55. Nd6 {[%emt 0:00:05]} 1-0

[Event "CCT Chessable Masters Play-In 2025"]
[Site "Online"]
[Date "2025.02.17"]
[Round "2.57"]
[White "Pantsulaia, Levan"]
[Black "Sanal, Vahap"]
[Result "1-0"]
[ECO "A38"]
[WhiteElo "2522"]
[BlackElo "2557"]
[PlyCount "165"]
[EventDate "2025.02.13"]
[EventType "swiss"]
[EventCountry "NET"]
[TimeControl "600"]
[WhiteClock "0:00:08"]

1. Nf3 {[%emt 0:00:01]} Nf6 {[%emt 0:00:38]} 2. g3 {[%emt 0:00:03]} g6 {[%emt 0:00:07]} 3. b3 {[%emt 0:00:01]} Bg7 {[%emt 0:00:03]} 4. Bb2 {[%emt 0:00:02]} c5 {[%emt 0:00:02]} 5. c4 {[%emt 0:00:03]} Nc6 {[%emt 0:00:06]} 6. Bg2 {[%emt 0:00:04]} d6 {[%emt 0:00:01]} 7. O-O {[%emt 0:00:02]} O-O {[%emt 0:00:04]} 8. d4 {[%emt 0:00:05]} cxd4 {[%emt 0:00:01]} 9. Nxd4 {[%emt 0:00:01]} Bd7 {[%emt 0:00:00]} 10. Nc2 {[%emt 0:00:03]} a6 {[%emt 0:00:05]} 11. Nc3 {[%emt 0:00:47]} Rb8 {[%emt 0:00:23]} 12. Nd5 {[%emt 0:00:04]} Nxd5 {[%emt 0:00:51]} 13. Bxg7 {[%emt 0:00:00]} Kxg7 {[%emt 0:00:01]} 14. cxd5 {[%emt 0:00:02]} Ne5 {[%emt 0:00:01]} 15. Qd4 {[%emt 0:00:14]} Kg8 {[%emt 0:00:11]} 16. Ne3 {[%emt 0:00:18]} Qa5 {[%emt 0:00:27]} 17. h3 {[%emt 0:00:10]} f5 {[%emt 0:00:16]} 18. f4 {[%emt 0:00:04]} Nf7 {[%emt 0:00:01]} 19. Nc4 {[%emt 0:00:45]} Qb4 {[%emt 0:00:19]} 20. a3 {[%emt 0:00:34]} Qxb3 {[%emt 0:00:08]} 21. Nb6 {[%emt 0:00:01]} Rfd8 {[%emt 0:00:35]} 22. Kh2 {[%emt 0:00:39]} e5 {[%emt 0:02:01]} 23. dxe6 {[%emt 0:00:03]} Qxe6 {[%emt 0:00:24]} 24. e4 {[%emt 0:01:11]} Bc6 {[%emt 0:00:07]} 25. Rae1 {[%emt 0:00:26]} Re8 {[%emt 0:00:03]} 26. exf5 {[%emt 0:00:15]} Qxf5 {[%emt 0:00:08]} 27. Bd5 {[%emt 0:01:11]} Rxe1 {[%emt 0:00:54]} 28. Rxe1 {[%emt 0:00:07]} Qc2+ {[%emt 0:00:01]} 29. Kg1 {[%emt 0:00:10]} Qc5 {[%emt 0:00:08]} 30. Qxc5 {[%emt 0:00:09]} dxc5 {[%emt 0:00:00]} 31. Bxc6 {[%emt 0:00:01]} bxc6 {[%emt 0:00:02]} 32. Nc4 {[%emt 0:00:00]} Rb3 {[%emt 0:00:08]} 33. Kg2 {[%emt 0:00:01]} Rc3 {[%emt 0:00:01]} 34. Re4 {[%emt 0:00:01]} Kf8 {[%emt 0:00:02]} 35. g4 {[%emt 0:00:03]} h5 {[%emt 0:00:02]} 36. a4 {[%emt 0:00:06]} h4 {[%emt 0:00:02]} 37. Ne3 {[%emt 0:00:10]} Nd6 {[%emt 0:00:16]} 38. Re6 {[%emt 0:00:01]} Kf7 {[%emt 0:00:03]} 39. Rxd6 {[%emt 0:00:04]} Rxe3 {[%emt 0:00:01]} 40. Rxc6 {[%emt 0:00:00]} Rg3+ {[%emt 0:00:01]} 41. Kh2 {[%emt 0:00:01]} Rf3 {[%emt 0:00:20]} 42. Rc7+ {[%emt 0:00:11]} Kg8 {[%emt 0:00:04]} 43. Rxc5 {[%emt 0:00:07]} Rf2+ {[%emt 0:00:01]} 44. Kg1 {[%emt 0:00:02]} Rxf4 {[%emt 0:00:00]} 45. Rc6 {[%emt 0:00:03]} Rxa4 {[%emt 0:00:02]} 46. Rxg6+ {[%emt 0:00:01]} Kf7 {[%emt 0:00:04]} 47. Rh6 {[%emt 0:00:01]} Kg7 {[%emt 0:00:09]} 48. Rxh4 {[%emt 0:00:07]} Ra5 {[%emt 0:00:00]} 49. Kf2 {[%emt 0:00:09]} Rg5 {[%emt 0:00:05]} 50. Ke3 {[%emt 0:00:08]} a5 {[%emt 0:00:01]} 51. Kd4 {[%emt 0:00:10]} a4 {[%emt 0:00:06]} 52. Kc3 {[%emt 0:00:05]} a3 {[%emt 0:00:00]} 53. Kb3 {[%emt 0:00:05]} Ra5 {[%emt 0:00:01]} 54. Ka2 {[%emt 0:00:02]} Kg8 {[%emt 0:00:08]} 55. Rh6 {[%emt 0:00:02]} Kg7 {[%emt 0:00:01]} 56. Rd6 {[%emt 0:00:02]} Ra4 {[%emt 0:00:02]} 57. Rd3 {[%emt 0:00:02]} Kg6 {[%emt 0:00:01]} 58. Rxa3 {[%emt 0:00:01]} Re4 {[%emt 0:00:01]} 59. Ra5 {[%emt 0:00:08]} Re3 {[%emt 0:00:01]} 60. Rh5 {[%emt 0:00:01]} Rc3 {[%emt 0:00:01]} 61. Kb2 {[%emt 0:00:01]} Rc8 {[%emt 0:00:00]} 62. Rf5 {[%emt 0:00:04]} Rh8 {[%emt 0:00:01]} 63. Rf3 {[%emt 0:00:01]} Kg5 {[%emt 0:00:01]} 64. Kc2 {[%emt 0:00:02]} Kh4 {[%emt 0:00:00]} 65. Kd2 {[%emt 0:00:01]} Ra8 {[%emt 0:00:00]} 66. Ke3 {[%emt 0:00:03]} Ra2 {[%emt 0:00:00]} 67. Ke4 {[%emt 0:00:02]} Ra1 {[%emt 0:00:00]} 68. Kf5 {[%emt 0:00:01]} Ra4 {[%emt 0:00:00]} 69. Kg6 {[%emt 0:00:01]} Ra6+ {[%emt 0:00:01]} 70. Rf6 {[%emt 0:00:00]} Ra5 {[%emt 0:00:00]} 71. Rf5 {[%emt 0:00:02]} Ra6+ {[%emt 0:00:00]} 72. Rf6 {[%emt 0:00:00]} Ra4 {[%emt 0:00:00]} 73. g5 {[%emt 0:00:00]} Kxh3 {[%emt 0:00:00]} 74. Kg7 {[%emt 0:00:02]} Kg4 {[%emt 0:00:00]} 75. g6 {[%emt 0:00:00]} Ra7+ {[%emt 0:00:01]} 76. Rf7 {[%emt 0:00:01]} Ra6 {[%emt 0:00:00]} 77. Rd7 {[%emt 0:00:00]} Kg5 {[%emt 0:00:00]} 78. Rd5+ {[%emt 0:00:01]} Kf4 {[%emt 0:00:00]} 79. Rd4+ {[%emt 0:00:00]} Ke5 {[%emt 0:00:01]} 80. Rc4 {[%emt 0:00:00]} Kf5 {[%emt 0:00:00]} 81. Rc5+ {[%emt 0:00:00]} Ke4 {[%emt 0:00:02]} 82. Rc4+ {[%emt 0:00:00]} Kd5 83. Rc1 {[%emt 0:00:00]} 1-0

[Event "CCT Chessable Masters Play-In 2025"]
[Site "Online"]
[Date "2025.02.17"]
[Round "2.58"]
[White "Svidler, Peter"]
[Black "Xiao, Tong"]
[Result "1-0"]
[ECO "B31"]
[WhiteElo "2696"]
[BlackElo "2491"]
[PlyCount "53"]
[EventDate "2025.02.13"]
[EventType "swiss"]
[EventCountry "NET"]
[TimeControl "600"]
[WhiteClock "0:06:33"]
[BlackClock "0:06:24"]

1. e4 {[%emt 0:00:01]} c5 {[%emt 0:00:04]} 2. Nf3 {[%emt 0:00:01]} Nc6 {[%emt 0:00:01]} 3. Bb5 {[%emt 0:00:02]} Nf6 {[%emt 0:00:04]} 4. Bxc6 {[%emt 0:00:03]} dxc6 {[%emt 0:00:04]} 5. d3 {[%emt 0:00:01]} g6 {[%emt 0:00:03]} 6. h3 {[%emt 0:00:13]} Bg7 {[%emt 0:00:00]} 7. O-O {[%emt 0:00:07]} O-O {[%emt 0:00:02]} 8. Re1 {[%emt 0:00:15]} Qc7 {[%emt 0:00:15]} 9. e5 {[%emt 0:00:14]} Nd5 {[%emt 0:00:01]} 10. c4 {[%emt 0:00:02]} Nb6 {[%emt 0:00:03]} 11. Nc3 {[%emt 0:00:43]} Bf5 {[%emt 0:00:12]} 12. g4 {[%emt 0:00:10]} Be6 {[%emt 0:00:03]} 13. Qe2 {[%emt 0:00:05]} Nd7 {[%emt 0:00:14]} 14. Bf4 {[%emt 0:00:07]} Rfd8 {[%emt 0:00:08]} 15. Bg3 {[%emt 0:00:27]} Nf8 {[%emt 0:00:08]} 16. Ne4 {[%emt 0:00:05]} b6 {[%emt 0:00:03]} 17. Rad1 {[%emt 0:00:05]} Rd7 {[%emt 0:00:11]} 18. Nf6+ {[%emt 0:00:07]} Bxf6 {[%emt 0:01:03]} 19. exf6 {[%emt 0:00:00]} Qd8 {[%emt 0:00:01]} 20. Ne5 {[%emt 0:00:17]} Rd6 {[%emt 0:00:17]} 21. Qf3 {[%emt 0:00:03]} exf6 {[%emt 0:00:19]} 22. Nxc6 {[%emt 0:00:04]} Rxc6 {[%emt 0:00:03]} 23. Qxc6 {[%emt 0:00:02]} Rc8 {[%emt 0:00:02]} 24. Qd6 {[%emt 0:00:01]} Qe8 {[%emt 0:00:02]} 25. d4 {[%emt 0:00:07]} cxd4 {[%emt 0:00:09]} 26. Qxd4 {[%emt 0:00:01]} Nd7 {[%emt 0:00:04]} 27. Rxe6 {[%emt 0:00:04]} 1-0

[Event "CCT Chessable Masters Play-In 2025"]
[Site "Online"]
[Date "2025.02.17"]
[Round "2.59"]
[White "Akobian, Varuzhan"]
[Black "Iturrizaga Bonelli, Eduardo"]
[Result "1-0"]
[ECO "E12"]
[WhiteElo "2564"]
[BlackElo "2577"]
[PlyCount "117"]
[EventDate "2025.02.13"]
[EventType "swiss"]
[EventCountry "NET"]
[TimeControl "600"]
[WhiteClock "0:00:03"]

1. d4 {[%emt 0:00:01]} Nf6 {[%emt 0:00:01]} 2. c4 {[%emt 0:00:01]} e6 {[%emt 0:00:01]} 3. Nf3 {[%emt 0:00:01]} b6 {[%emt 0:00:02]} 4. a3 {[%emt 0:00:01]} Bb7 {[%emt 0:00:01]} 5. Nc3 {[%emt 0:00:01]} d5 {[%emt 0:00:04]} 6. Bg5 {[%emt 0:00:02]} Be7 {[%emt 0:00:05]} 7. e3 {[%emt 0:00:01]} O-O {[%emt 0:00:02]} 8. Rc1 {[%emt 0:00:01]} h6 {[%emt 0:00:12]} 9. Bxf6 {[%emt 0:00:11]} Bxf6 {[%emt 0:00:00]} 10. cxd5 {[%emt 0:00:01]} exd5 {[%emt 0:00:00]} 11. b4 {[%emt 0:00:06]} c6 {[%emt 0:00:06]} 12. Bd3 {[%emt 0:00:07]} Nd7 {[%emt 0:00:03]} 13. Qb3 {[%emt 0:00:01]} b5 {[%emt 0:00:07]} 14. a4 {[%emt 0:00:06]} a6 {[%emt 0:00:01]} 15. a5 {[%emt 0:00:01]} Re8 {[%emt 0:00:07]} 16. O-O {[%emt 0:00:02]} Be7 {[%emt 0:00:15]} 17. Ne2 {[%emt 0:00:18]} Bd6 {[%emt 0:00:05]} 18. Rc2 {[%emt 0:00:01]} Qf6 {[%emt 0:00:43]} 19. Rfc1 {[%emt 0:00:43]} Nf8 {[%emt 0:00:06]} 20. Ng3 {[%emt 0:00:28]} g6 {[%emt 0:00:02]} 21. Re1 {[%emt 0:02:38]} Ne6 {[%emt 0:00:12]} 22. Rec1 {[%emt 0:00:27]} Rac8 {[%emt 0:00:07]} 23. Nf1 {[%emt 0:00:09]} h5 {[%emt 0:00:07]} 24. Qb2 {[%emt 0:00:03]} Rc7 {[%emt 0:00:15]} 25. Ne5 {[%emt 0:00:05]} Bxe5 {[%emt 0:01:55]} 26. dxe5 {[%emt 0:00:02]} Qe7 {[%emt 0:00:00]} 27. Nd2 {[%emt 0:00:20]} c5 {[%emt 0:00:15]} 28. bxc5 {[%emt 0:00:03]} Nxc5 {[%emt 0:00:00]} 29. Be2 {[%emt 0:01:11]} Na4 {[%emt 0:00:18]} 30. Qd4 {[%emt 0:00:36]} Rec8 {[%emt 0:00:02]} 31. Rxc7 {[%emt 0:00:16]} Rxc7 {[%emt 0:00:01]} 32. Rxc7 {[%emt 0:00:02]} Qxc7 {[%emt 0:00:02]} 33. Nb3 {[%emt 0:00:02]} Bc8 {[%emt 0:00:13]} 34. Bd3 {[%emt 0:00:20]} Be6 {[%emt 0:00:10]} 35. h3 {[%emt 0:00:09]} Qc8 {[%emt 0:00:07]} 36. Kh2 {[%emt 0:00:13]} Bf5 {[%emt 0:00:33]} 37. Bxf5 {[%emt 0:00:03]} Qxf5 {[%emt 0:00:00]} 38. Qxd5 {[%emt 0:00:15]} Qxf2 {[%emt 0:00:02]} 39. e6 {[%emt 0:00:01]} fxe6 {[%emt 0:01:26]} 40. Qxe6+ {[%emt 0:00:03]} Qf7 {[%emt 0:00:01]} 41. Qc8+ {[%emt 0:00:08]} Kg7 {[%emt 0:00:15]} 42. Nd4 {[%emt 0:00:01]} Qe7 {[%emt 0:00:02]} 43. Qxa6 {[%emt 0:00:08]} Qe5+ {[%emt 0:00:01]} 44. Kh1 {[%emt 0:00:02]} Nc3 {[%emt 0:00:21]} 45. Qb7+ {[%emt 0:00:04]} Kh6 {[%emt 0:00:02]} 46. Qf3 {[%emt 0:00:02]} Nd5 {[%emt 0:00:28]} 47. Qf8+ {[%emt 0:00:02]} Kh7 {[%emt 0:00:05]} 48. Qf7+ {[%emt 0:00:01]} Kh6 {[%emt 0:00:02]} 49. Ne6 {[%emt 0:00:01]} Qa1+ {[%emt 0:00:03]} 50. Kh2 {[%emt 0:00:01]} Qe5+ {[%emt 0:00:01]} 51. Kh1 {[%emt 0:00:01]} Qa1+ {[%emt 0:00:09]} 52. Kh2 {[%emt 0:00:02]} Qe5+ {[%emt 0:00:00]} 53. Nf4 {[%emt 0:00:00]} Ne7 {[%emt 0:00:30]} 54. a6 {[%emt 0:00:01]} Qxe3 {[%emt 0:00:07]} 55. Qf8+ {[%emt 0:00:02]} Kg5 {[%emt 0:00:01]} 56. a7 {[%emt 0:00:02]} Nf5 {[%emt 0:00:03]} 57. Qd8+ {[%emt 0:00:03]} Kh6 {[%emt 0:00:01]} 58. Qh8+ {[%emt 0:00:03]} Kg5 59. Qd8+ {[%emt 0:00:01]} 1-0